fUST/lending_fUST_20240605
["ID","MTS","AMOUNT","RATE_DAILY","PERIOD"]
[328598683,1717591849146,-254.30812518,0.00023558,2]
[328598684,1717591849155,-393.10916144,0.00023559,2]
[328598685,1717591849164,-155.09842705,0.00023559,2]
[328598686,1717591849173,-316.39320639,0.00023559,2]
[328598687,1717591849182,-239.86842692,0.00023559,2]
[328598688,1717591849191,-417.3489686,0.00023559,2]
[328598689,1717591849200,-156.98418007,0.00023559,2]
[328598690,1717591849209,-287.10080639,0.0002356,2]
[328598691,1717591849218,-500.0,0.00023561,2]
[328598692,1717591849227,-500.0,0.00023561,2]
[328598693,1717591849236,-500.0,0.00023561,2]
[328598694,1717591849245,-500.0,0.00023561,2]
[328598695,1717591849254,-500.0,0.00023561,2]
[328598696,1717591849263,-800.72,0.00023561,2]
[328598697,1717591849272,-500.0,0.00023561,2]
[328598698,1717591849281,-500.0,0.00023561,2]
[328598699,1717591849293,-883.33,0.00023561,2]
[328598700,1717591849302,-640.49,0.00023561,2]
[328598701,1717591849311,-514.2,0.00023561,2]
[328598702,1717591849320,-996.64,0.00023561,2]
[328598703,1717591849329,-177.56065604,0.00023561,2]
[328598704,1717591849337,-500.0,0.00023561,2]
[328598705,1717591849351,-500.0,0.00023561,2]
[328598706,1717591849359,-500.0,0.00023561,2]
[328598707,1717591849369,-500.0,0.00023561,2]
[328598708,1717591849378,-818.07,0.00023561,2]
[328598709,1717591849388,-633.25,0.00023561,2]
[328598710,1717591849398,-949.89,0.00023561,2]
[328598711,1717591849407,-741.83,0.00023561,2]
[328598712,1717591849416,-500.0,0.00023561,2]
[328598713,1717591849426,-967.35,0.00023561,2]
[328598714,1717591849435,-500.0,0.00023561,2]
[328598715,1717591849444,-500.0,0.00023561,2]
[328598716,1717591849453,-500.0,0.00023561,2]
[328598717,1717591849462,-560.88,0.00023561,2]
[328598718,1717591849472,-500.0,0.00023561,2]
[328598719,1717591849482,-500.0,0.00023561,2]
[328598720,1717591849491,-625.75,0.00023561,2]
[328598721,1717591849500,-500.0,0.00023561,2]
[328598722,1717591849509,-500.0,0.00023561,2]
[328598723,1717591849518,-500.0,0.00023561,2]
[328598724,1717591849528,-3297.49,0.00023561,2]
[328598725,1717591849537,-1108.58,0.00023561,2]
[328598726,1717591849547,-1747.69,0.00023561,2]
[328598727,1717591849557,-1732.48,0.00023561,2]
[328598728,1717591849566,-500.0,0.00023561,2]
[328598729,1717591849575,-641.83,0.00023561,2]
[328598730,1717591849584,-661.88,0.00023561,2]
[328598731,1717591849594,-1847.84,0.00023561,2]
[328598732,1717591849603,-500.0,0.00023561,2]
[328598733,1717591849612,-500.0,0.00023561,2]
[328598734,1717591849621,-511.63,0.00023561,2]
[328598735,1717591849629,-843.33,0.00023561,2]
[328598736,1717591849638,-500.0,0.00023561,2]
[328598737,1717591849647,-702.92,0.00023561,2]
[328598738,1717591849656,-4223.75,0.00023561,2]
[328598739,1717591849665,-3794.83,0.00023561,2]
[328598740,1717591849674,-1457.18,0.00023561,2]
[328598741,1717591849683,-529.43,0.00023561,2]
[328598742,1717591849692,-854.9,0.00023561,2]
[328598743,1717591849701,-500.0,0.00023561,2]
[328598744,1717591849710,-2031.75,0.00023561,2]
[328598745,1717591849719,-649.57,0.00023561,2]
[328598746,1717591849729,-500.0,0.00023561,2]
[328598747,1717591849738,-500.0,0.00023561,2]
[328598748,1717591849748,-500.0,0.00023561,2]
[328598749,1717591849757,-500.0,0.00023561,2]
[328598750,1717591849766,-500.0,0.00023561,2]
[328598751,1717591849776,-500.0,0.00023561,2]
[328598752,1717591849785,-1119.6,0.00023561,2]
[328598753,1717591849795,-787.87,0.00023561,2]
[328598754,1717591849804,-500.0,0.00023561,2]
[328598755,1717591849814,-2000.0,0.000238,6]
[328598756,1717591849823,-2000.0,0.000238,7]
[328598757,1717591849832,-50226.55714636,0.0002383,2]
[328598758,1717591849842,-353.79315532,0.00023832,2]
[328598759,1717591849851,-160.99681218,0.00023832,2]
[328598760,1717591849860,-642.15807754,0.00023832,2]
[328598761,1717591849869,-309.68167653,0.00023832,2]
[328598762,1717591849878,-155.60955386,0.00023832,2]
[328598763,1717591849887,-529.21320198,0.00023832,2]
[328598764,1717591849897,-199.31962517,0.00023832,2]
[328598765,1717591849906,-173.17266027,0.00023832,2]
[328598766,1717591849915,-614.15980497,0.00023832,2]
[328598767,1717591849925,-155.35179315,0.00023832,2]
[328598768,1717591849934,-418.98703288,0.00023832,2]
[328598769,1717591849942,-157.91561148,0.00023832,2]
[328598770,1717591849951,-225.09954874,0.00023832,2]
[328598771,1717591849961,-167.82402475,0.00023833,2]
[328598772,1717591849970,-244.86475907,0.00023833,2]
[328598773,1717591849979,-206.08627711,0.00023835,2]
[328598774,1717591849988,-500.0,0.00023835,2]
[328598775,1717591849997,-500.0,0.00023835,2]
[328598776,1717591850006,-500.0,0.00023835,2]
[328598777,1717591850015,-500.0,0.00023835,2]
[328598778,1717591850024,-800.72,0.00023835,2]
[328598779,1717591850033,-500.0,0.00023835,2]
[328598780,1717591850045,-500.0,0.00023835,2]
[328598781,1717591850054,-883.33,0.00023835,2]
[328598782,1717591850063,-640.49,0.00023835,2]
[328598783,1717591850073,-514.2,0.00023835,2]
[328598784,1717591850082,-996.64,0.00023835,2]
[328598785,1717591850091,-500.0,0.00023835,2]
[328598786,1717591850100,-500.0,0.00023835,2]
[328598787,1717591850109,-500.0,0.00023835,2]
[328598788,1717591850119,-500.0,0.00023835,2]
[328598789,1717591850128,-818.07,0.00023835,2]
[328598790,1717591850138,-633.25,0.00023835,2]
[328598791,1717591850147,-949.89,0.00023835,2]
[328598792,1717591850156,-741.83,0.00023835,2]
[328598793,1717591850165,-500.0,0.00023835,2]
[328598794,1717591850174,-967.35,0.00023835,2]
[328598795,1717591850183,-500.0,0.00023835,2]
[328598796,1717591850192,-500.0,0.00023835,2]
[328598797,1717591850201,-500.0,0.00023835,2]
[328598798,1717591850211,-560.88,0.00023835,2]
[328598799,1717591850219,-500.0,0.00023835,2]
[328598800,1717591850229,-500.0,0.00023835,2]
[328598801,1717591850238,-625.75,0.00023835,2]
[328598802,1717591850246,-500.0,0.00023835,2]
[328598803,1717591850255,-500.0,0.00023835,2]
[328598804,1717591850264,-500.0,0.00023835,2]
[328598805,1717591850273,-3297.49,0.00023835,2]
[328598806,1717591850283,-1108.58,0.00023835,2]
[328598807,1717591850295,-1747.69,0.00023835,2]
[328598808,1717591850304,-1732.48,0.00023835,2]
[328598809,1717591850313,-500.0,0.00023835,2]
[328598810,1717591850322,-641.83,0.00023835,2]
[328598811,1717591850332,-661.88,0.00023835,2]
[328598812,1717591850341,-1847.84,0.00023835,2]
[328598813,1717591850355,-500.0,0.00023835,2]
[328598814,1717591850366,-500.0,0.00023835,2]
[328598815,1717591850375,-511.63,0.00023835,2]
[328598816,1717591850385,-843.33,0.00023835,2]
[328598817,1717591850395,-330.92770761,0.00023835,2]
[328598818,1717591850405,-702.92,0.00023835,2]
[328598819,1717591850414,-4223.75,0.00023835,2]
[328598820,1717591850424,-3794.83,0.00023835,2]
[328598821,1717591850433,-1457.18,0.00023835,2]
[328598822,1717591850442,-529.43,0.00023835,2]
[328598823,1717591850452,-854.9,0.00023835,2]
[328598824,1717591850461,-500.0,0.00023835,2]
[328598825,1717591850470,-2031.75,0.00023835,2]
[328598826,1717591850480,-649.57,0.00023835,2]
[328598827,1717591850489,-500.0,0.00023835,2]
[328598828,1717591850499,-500.0,0.00023835,2]
[328598829,1717591850509,-500.0,0.00023835,2]
[328598830,1717591850520,-500.0,0.00023835,2]
[328598831,1717591850529,-500.0,0.00023835,2]
[328598832,1717591850540,-500.0,0.00023835,2]
[328598833,1717591850550,-1119.6,0.00023835,2]
[328598834,1717591850560,-787.87,0.00023835,2]
[328598835,1717591850569,-500.0,0.00023835,2]
[328598836,1717591850578,-239.56576543,0.000239,2]
[328598837,1717591850588,-166.666666,0.00023969,2]
[328598838,1717591850598,-1000.0,0.00024,14]
[328598839,1717591850607,-285.0,0.00024,2]
[328598840,1717591850617,-500.0,0.00024109,2]
[328598841,1717591850626,-500.0,0.00024109,2]
[328598842,1717591850636,-500.0,0.00024109,2]
[328598843,1717591850645,-500.0,0.00024109,2]
[328598844,1717591850656,-800.72,0.00024109,2]
[328598845,1717591850665,-500.0,0.00024109,2]
[328598846,1717591850675,-500.0,0.00024109,2]
[328598847,1717591850684,-883.33,0.00024109,2]
[328598848,1717591850694,-640.49,0.00024109,2]
[328598849,1717591850703,-514.2,0.00024109,2]
[328598850,1717591850712,-996.64,0.00024109,2]
[328598851,1717591850721,-500.0,0.00024109,2]
[328598852,1717591850731,-500.0,0.00024109,2]
[328598853,1717591850740,-500.0,0.00024109,2]
[328598854,1717591850750,-500.0,0.00024109,2]
[328598855,1717591850760,-818.07,0.00024109,2]
[328598856,1717591850770,-633.25,0.00024109,2]
[328598857,1717591850779,-949.89,0.00024109,2]
[328598858,1717591850789,-741.83,0.00024109,2]
[328598859,1717591850798,-606.85923824,0.00024109,2]
[328598860,1717591850807,-500.0,0.00024109,2]
[328598861,1717591850816,-967.35,0.00024109,2]
[328598862,1717591850827,-500.0,0.00024109,2]
[328598863,1717591850837,-500.0,0.00024109,2]
[328598864,1717591850847,-560.88,0.00024109,2]
[328598865,1717591850857,-500.0,0.00024109,2]
[328598866,1717591850866,-500.0,0.00024109,2]
[328598867,1717591850875,-625.75,0.00024109,2]
[328598868,1717591850884,-500.0,0.00024109,2]
[328598869,1717591850894,-500.0,0.00024109,2]
[328598870,1717591850903,-500.0,0.00024109,2]
[328598871,1717591850913,-3297.49,0.00024109,2]
[328598872,1717591850922,-1108.58,0.00024109,2]
[328598873,1717591850931,-1747.69,0.00024109,2]
[328598874,1717591850940,-1732.48,0.00024109,2]
[328598875,1717591850950,-500.0,0.00024109,2]
[328598876,1717591850959,-641.83,0.00024109,2]
[328598877,1717591850968,-661.88,0.00024109,2]
[328598878,1717591850977,-1847.84,0.00024109,2]
[328598879,1717591850986,-500.0,0.00024109,2]
[328598880,1717591850996,-500.0,0.00024109,2]
[328598881,1717591851005,-511.63,0.00024109,2]
[328598882,1717591851014,-843.33,0.00024109,2]
[328598883,1717591851024,-702.92,0.00024109,2]
[328598884,1717591851033,-4223.75,0.00024109,2]
[328598885,1717591851045,-3794.83,0.00024109,2]
[328598886,1717591851054,-1457.18,0.00024109,2]
[328598887,1717591851063,-529.43,0.00024109,2]
[328598888,1717591851072,-854.9,0.00024109,2]
[328598889,1717591851080,-2031.75,0.00024109,2]
[328598890,1717591851089,-500.0,0.00024109,2]
[328598891,1717591851099,-649.57,0.00024109,2]
[328598892,1717591851108,-500.0,0.00024109,2]
[328598893,1717591851117,-451.13081973,0.00024109,2]
[328598894,1717591851126,-500.0,0.00024109,2]
[328598895,1717591851135,-500.0,0.00024109,2]
[328598896,1717591851145,-500.0,0.00024109,2]
[328598897,1717591851154,-187.46793896,0.00024109,2]
[328598898,1717591851163,-1119.6,0.00024109,2]
[328598899,1717591851173,-787.87,0.00024109,2]
[328598900,1717591851182,-500.0,0.00024109,2]
[328598901,1717591851191,-192.0,0.00024164,2]
[328598902,1717591851201,-175.3,0.0002423,7]
[328598903,1717591851213,-151.0,0.0002423,7]
[328598904,1717591851223,-600.0,0.00024374,2]
[328598905,1717591851232,-235.75181832,0.00024381,2]
[328598906,1717591851241,-294.98356204,0.00024381,2]
[328598907,1717591851250,-169.61836685,0.00024382,2]
[328598908,1717591851260,-500.0,0.00024383,2]
[328598909,1717591851269,-500.0,0.00024383,2]
[328598910,1717591851279,-500.0,0.00024383,2]
[328598911,1717591851291,-500.0,0.00024383,2]
[328598912,1717591851300,-800.72,0.00024383,2]
[328598913,1717591851311,-500.0,0.00024383,2]
[328598914,1717591851320,-169.35925496,0.00024383,2]
[328598915,1717591851330,-883.33,0.00024383,2]
[328598916,1717591851339,-640.49,0.00024383,2]
[328598917,1717591851350,-514.2,0.00024383,2]
[328598918,1717591851361,-996.64,0.00024383,2]
[328598919,1717591851370,-500.0,0.00024383,2]
[328598920,1717591851379,-500.0,0.00024383,2]
[328598921,1717591851388,-500.0,0.00024383,2]
[328598922,1717591851398,-500.0,0.00024383,2]
[328598923,1717591851407,-818.07,0.00024383,2]
[328598924,1717591851416,-633.25,0.00024383,2]
[328598925,1717591851520,-949.89,0.00024383,2]
[328598926,1717591851550,-741.83,0.00024383,2]
[328598927,1717591851559,-500.0,0.00024383,2]
[328598928,1717591851569,-967.35,0.00024383,2]
[328598929,1717591851578,-500.0,0.00024383,2]
[328598930,1717591851587,-500.0,0.00024383,2]
[328598931,1717591851597,-560.88,0.00024383,2]
[328598932,1717591851608,-500.0,0.00024383,2]
[328598933,1717591851617,-500.0,0.00024383,2]
[328598934,1717591851627,-625.75,0.00024383,2]
[328598935,1717591851636,-500.0,0.00024383,2]
[328598936,1717591851645,-500.0,0.00024383,2]
[328598937,1717591851655,-500.0,0.00024383,2]
[328598938,1717591851664,-3297.49,0.00024383,2]
[328598939,1717591851674,-1108.58,0.00024383,2]
[328598940,1717591851683,-1747.69,0.00024383,2]
[328598941,1717591851693,-1732.48,0.00024383,2]
[328598942,1717591851702,-500.0,0.00024383,2]
[328598943,1717591851711,-641.83,0.00024383,2]
[328598944,1717591851721,-661.88,0.00024383,2]
[328598945,1717591851730,-1847.84,0.00024383,2]
[328598946,1717591851739,-500.0,0.00024383,2]
[328598947,1717591851748,-500.0,0.00024383,2]
[328598948,1717591851757,-511.63,0.00024383,2]
[328598949,1717591851769,-843.33,0.00024383,2]
[328598950,1717591851779,-702.92,0.00024383,2]
[328598951,1717591851791,-4223.75,0.00024383,2]
[328598952,1717591851801,-3794.83,0.00024383,2]
[328598953,1717591851811,-1457.18,0.00024383,2]
[328598954,1717591851821,-529.43,0.00024383,2]
[328598955,1717591851831,-854.9,0.00024383,2]
[328598956,1717591851840,-2031.75,0.00024383,2]
[328598957,1717591851850,-500.0,0.00024383,2]
[328598958,1717591851859,-649.57,0.00024383,2]
[328598959,1717591851869,-500.0,0.00024383,2]
[328598960,1717591851878,-500.0,0.00024383,2]
[328598961,1717591851888,-500.0,0.00024383,2]
[328598962,1717591851897,-500.0,0.00024383,2]
[328598963,1717591851907,-1119.6,0.00024383,2]
[328598964,1717591851916,-787.87,0.00024383,2]
[328598965,1717591851925,-179.76392679,0.00024383,2]
[328598966,1717591851935,-762.45939015,0.000244,2]
[328598967,1717591851944,-166.666666,0.00024482,2]
[328598968,1717591851954,-115531.05794998,0.00024595,2]
[328598969,1717591851974,-3812.67790999,0.00024595,2]
[328598974,1717592757761,9999.999999,9.99e-05,10]
[328599058,1717593040446,-150.0,0.000189,2]
[328599060,1717593040456,-339.96072501,0.00021052,2]
[328599065,1717593041631,-11448.82756198,0.00021052,2]
[328599208,1717594238501,-190.37021129,0.000156,2]
[328599209,1717594238510,-430.41962354,0.00019171,2]
[328599210,1717594238522,-1883.00146886,0.00019171,2]
[328599211,1717594238532,-1234.1224539,0.00019378,2]
[328599212,1717594238541,-1623.72135577,0.00019857,7]
[328599213,1717594238550,-10326.09914605,0.00019857,2]
[328599214,1717594238561,-2147.73455586,0.00019857,2]
[328599215,1717594238572,-565.90470413,0.00019857,2]
[328599216,1717594238584,-1732.64787086,0.00019857,2]
[328599218,1717594241841,-2822.40981283,0.00019857,2]
[328599219,1717594241853,-311.20545213,0.00019857,2]
[328599370,1717594806062,3945.33951736,0.0002011,11]
[328599375,1717595160746,529.88558446,9.999e-05,2]
[328599460,1717595433071,-158.4,0.00018734,3]
[328599461,1717595433081,-190.37021129,0.00018857,2]
[328599462,1717595433090,-89.42995897,0.00018858,2]
[328599463,1717595433103,-24810.57004103,0.00018858,2]
[328599464,1717595433113,-1495.1760705,0.00018906,2]
[328599465,1717595433122,-158.4,0.00019362,3]
[328599466,1717595433132,-150.0,0.00019492,2]
[328599467,1717595433141,-4235.50878984,0.00019509,2]
[328599468,1717595433150,-1182.92928591,0.00019598,2]
[328599469,1717595433162,-7913.37404345,0.00019856,2]
[328599470,1717595433172,-158.4,0.0001999,3]
[328599471,1717595433181,-797.58773071,0.0002,2]
[328599472,1717595433191,-461.60981632,0.0002,2]
[328599473,1717595433200,-154.98450155,0.0002,2]
[328599474,1717595433210,-225.02004134,0.0002011,2]
[328599475,1717595433220,-5880.45582766,0.0002011,2]
[328599476,1717595433229,-158.4,0.00020618,3]
[328599477,1717595433239,-1182.92928585,0.00020641,2]
[328599478,1717595433249,-166.623638,0.00020689,2]
[328599479,1717595433259,-217.5,0.00020816,3]
[328599480,1717595433268,-3051.34150764,0.00021052,2]
[328599481,1717595433282,-937.73302577,0.00021052,2]
[328599482,1717595433292,-156.53485977,0.00021052,2]
[328599483,1717595433301,-158.4,0.00021246,5]
[328599484,1717595433312,-306.0,0.0002137,2]
[328599485,1717595433321,-306.0,0.0002137,2]
[328599486,1717595433331,-217.5,0.00021514,5]
[328599487,1717595433340,-142.96509247,0.00021684,2]
[328599498,1717595440112,-811.86067789,0.00019509,7]
[328599499,1717595440122,-1039.96419338,0.00021684,2]
[328599501,1717595440133,-543.66089275,0.00021816,2]
[328599502,1717595440143,-158.4,0.00021874,5]
[328599503,1717595440152,-528.0,0.00021907,3]
[328599505,1717595440164,-500.0,0.00021914,2]
[328599506,1717595440173,-375.40451793,0.00021914,2]
[328599507,1717595440183,-35.50360762,0.00021914,2]
[328599508,1717595440195,-464.49639238,0.00021914,2]
[328599509,1717595440204,-500.0,0.00021914,2]
[328599510,1717595440214,-500.0,0.00021914,2]
[328599511,1717595440223,-500.0,0.00021914,2]
[328599512,1717595440233,-30.77448586,0.00021914,2]
[328599517,1717595442310,-469.22551414,0.00021914,2]
[328599518,1717595442320,-500.0,0.00021914,2]
[328599519,1717595442330,-500.0,0.00021914,2]
[328599520,1717595442340,-500.0,0.00021914,2]
[328599521,1717595442350,-500.0,0.00021914,2]
[328599522,1717595442360,-500.0,0.00021914,2]
[328599523,1717595442369,-500.0,0.00021916,2]
[328599524,1717595442379,-500.0,0.00021916,2]
[328599525,1717595442388,-500.0,0.00021916,2]
[328599526,1717595442398,-391.3001725,0.00021916,2]
[328599527,1717595442408,-250.39348915,0.00021916,2]
[328599528,1717595442423,-190.61508655,0.00021916,2]
[328599529,1717595442432,-500.0,0.00021916,2]
[328599530,1717595442442,-500.0,0.00021916,2]
[328599531,1717595442452,-500.0,0.00021916,2]
[328599532,1717595442462,-500.0,0.00021916,2]
[328599533,1717595442473,-500.0,0.00021916,2]
[328599534,1717595442487,-414.09162701,0.00021916,2]
[328599535,1717595442496,-500.0,0.00021916,2]
[328599536,1717595442505,-500.0,0.00021916,2]
[328599537,1717595442515,-500.0,0.00021916,2]
[328599538,1717595442527,-608.67111799,0.00021916,2]
[328599539,1717595442537,-500.0,0.00021916,2]
[328599540,1717595442546,-447.49533649,0.00021916,2]
[328599541,1717595442556,-500.0,0.00021916,2]
[328599542,1717595442566,-500.0,0.00021916,2]
[328599543,1717595442576,-500.0,0.00021916,2]
[328599544,1717595442585,-500.0,0.00021916,2]
[328599545,1717595442595,-635.763175,0.00021916,2]
[328599546,1717595442604,-500.0,0.00021916,2]
[328599547,1717595442614,-500.0,0.00021916,2]
[328599548,1717595442623,-500.0,0.00021916,2]
[328599549,1717595442632,-500.0,0.00021916,2]
[328599550,1717595442642,-500.0,0.00021917,2]
[328599551,1717595442652,-298.99223851,0.00021917,2]
[328599552,1717595442665,-301.15748367,0.00021917,2]
[328599553,1717595442675,-500.0,0.00021917,2]
[328599554,1717595442685,-439.14050961,0.00021917,2]
[328599555,1717595442694,-500.0,0.00021917,2]
[328599556,1717595442704,-386.72461479,0.00021917,2]
[328599557,1717595442714,-500.0,0.00021917,2]
[328599558,1717595442723,-530.9924684,0.00021917,2]
[328599559,1717595442733,-581.37,0.00021917,2]
[328599560,1717595442743,-500.0,0.00021917,2]
[328599561,1717595442752,-515.27,0.00021917,2]
[328599562,1717595442761,-500.0,0.00021917,2]
[328599563,1717595442771,-500.0,0.00021917,2]
[328599564,1717595442781,-500.0,0.00021917,2]
[328599565,1717595442790,-500.0,0.00021917,2]
[328599566,1717595442800,-500.0,0.00021917,2]
[328599567,1717595442809,-554.11,0.00021917,2]
[328599568,1717595442819,-500.0,0.00021917,2]
[328599569,1717595442828,-500.0,0.00021917,2]
[328599570,1717595442837,-500.0,0.00021917,2]
[328599571,1717595442847,-500.0,0.00021917,2]
[328599572,1717595442857,-500.0,0.00021917,2]
[328599573,1717595442867,-500.0,0.00021917,2]
[328599574,1717595442877,-500.0,0.00021917,2]
[328599575,1717595442886,-500.0,0.00021917,2]
[328599576,1717595442895,-500.0,0.00021917,2]
[328599577,1717595442905,-564.29,0.00021917,2]
[328599578,1717595442918,-500.0,0.00021917,2]
[328599579,1717595442928,-500.0,0.00021917,2]
[328599580,1717595442937,-500.0,0.00021917,2]
[328599581,1717595442946,-414.52240355,0.00021917,2]
[328599582,1717595442955,-653.1,0.00021917,2]
[328599583,1717595442965,-500.0,0.00021917,2]
[328599584,1717595442974,-500.0,0.00021917,2]
[328599585,1717595442983,-500.0,0.00021917,2]
[328599586,1717595442992,-500.0,0.00021917,2]
[328599587,1717595443002,-500.0,0.00021917,2]
[328599588,1717595443011,-500.0,0.00021917,2]
[328599589,1717595443020,-938.41,0.00021917,2]
[328599590,1717595443031,-500.0,0.00021917,2]
[328599591,1717595443040,-500.0,0.00021917,2]
[328599592,1717595443050,-500.0,0.00021917,2]
[328599593,1717595443059,-500.0,0.00021917,2]
[328599594,1717595443068,-500.0,0.00021917,2]
[328599595,1717595443078,-500.0,0.00021917,2]
[328599596,1717595443087,-500.0,0.00021917,2]
[328599597,1717595443097,-1923.54,0.00021917,2]
[328599598,1717595443106,-1040.32,0.00021917,2]
[328599599,1717595443115,-500.0,0.00021917,2]
[328599600,1717595443124,-500.0,0.00021917,2]
[328599601,1717595443134,-500.0,0.00021917,2]
[328599602,1717595443144,-500.0,0.00021917,2]
[328599603,1717595443154,-1010.61,0.00021917,2]
[328599604,1717595443166,-500.0,0.00021917,2]
[328599605,1717595443176,-500.0,0.00021917,2]
[328599606,1717595443185,-500.0,0.00021917,2]
[328599607,1717595443195,-500.0,0.00021917,2]
[328599608,1717595443204,-500.0,0.00021917,2]
[328599609,1717595443214,-500.0,0.00021917,2]
[328599610,1717595443224,-500.0,0.00021917,2]
[328599611,1717595443234,-500.0,0.00021917,2]
[328599612,1717595443243,-500.0,0.00021917,2]
[328599613,1717595443253,-500.0,0.00021917,2]
[328599614,1717595443262,-500.0,0.00021917,2]
[328599615,1717595443272,-500.0,0.00021917,2]
[328599616,1717595443281,-500.0,0.00021917,2]
[328599617,1717595443291,-500.0,0.00021917,2]
[328599618,1717595443300,-500.0,0.00021917,2]
[328599619,1717595443309,-500.0,0.00021917,2]
[328599620,1717595443319,-500.0,0.00021917,2]
[328599621,1717595443328,-500.0,0.00021917,2]
[328599623,1717595443337,-1077.9,0.00021917,2]
[328599624,1717595443347,-500.0,0.00021917,2]
[328599625,1717595443356,-2513.88,0.00021917,2]
[328599626,1717595443366,-601.64,0.00021917,2]
[328599627,1717595443375,-442.53126218,0.00021917,2]
[328599628,1717595443384,-500.0,0.00021917,2]
[328599629,1717595443394,-500.0,0.00021917,2]
[328599630,1717595443403,-500.0,0.00021917,2]
[328599631,1717595443415,-500.0,0.00021917,2]
[328599632,1717595443424,-500.0,0.00021917,2]
[328599633,1717595443434,-471.56178574,0.00021917,2]
[328599634,1717595443444,-500.0,0.00021917,2]
[328599635,1717595443454,-1417.35,0.00021917,2]
[328599636,1717595443464,-850.02,0.00021917,2]
[328599637,1717595443475,-516.48030854,0.00021917,2]
[328599638,1717595443484,-500.0,0.00021917,2]
[328599639,1717595443496,-517.89194588,0.00021917,2]
[328599640,1717595443504,-500.0,0.00021917,2]
[328599641,1717595443514,-500.0,0.00021917,2]
[328599642,1717595443525,-1185.19,0.00021917,2]
[328599643,1717595443535,-2213.66,0.00021917,2]
[328599644,1717595443544,-500.0,0.00021917,2]
[328599645,1717595443553,-500.0,0.00021917,2]
[328599646,1717595443563,-166.666666,0.00021918,2]
[328599647,1717595443576,-153.0,0.00021918,2]
[328599648,1717595443586,-11365.95240278,0.00022,2]
[328599649,1717595443595,-543.66089272,0.0002209,2]
[328599650,1717595443604,-624.16065565,0.000221,2]
[328599651,1717595443614,-7263.7027066,0.00022188,2]
[328599652,1717595443624,-500.0,0.0002219,2]
[328599653,1717595443633,-500.0,0.0002219,2]
[328599654,1717595443643,-500.0,0.00022191,2]
[328599655,1717595443652,-500.0,0.00022191,2]
[328599656,1717595443662,-500.0,0.00022191,2]
[328599657,1717595443673,-581.37,0.00022191,2]
[328599658,1717595443682,-500.0,0.00022191,2]
[328599659,1717595443691,-515.27,0.00022191,2]
[328599660,1717595443700,-500.0,0.00022191,2]
[328599661,1717595443709,-500.0,0.00022191,2]
[328599662,1717595443719,-500.0,0.00022191,2]
[328599663,1717595443729,-554.11,0.00022191,2]
[328599664,1717595443738,-500.0,0.00022191,2]
[328599665,1717595443747,-500.0,0.00022191,2]
[328599666,1717595443757,-500.0,0.00022191,2]
[328599667,1717595443766,-500.0,0.00022191,2]
[328599668,1717595443775,-500.0,0.00022191,2]
[328599669,1717595443784,-500.0,0.00022191,2]
[328599670,1717595443793,-500.0,0.00022191,2]
[328599671,1717595443803,-564.29,0.00022191,2]
[328599672,1717595443814,-416.85547306,0.00022191,2]